lending/lending_fUSD_20240824
["ID","MTS","AMOUNT","RATE_DAILY","PERIOD"]
[335810645,1724501447263,-500.0,0.00010999,2]
[335810646,1724501447273,-500.0,0.00010999,2]
[335810647,1724501447282,-496.13768975,0.00010999,2]
[335810648,1724501447291,-393.70741514,0.00010999,2]
[335810649,1724501447301,-500.0,0.00010999,2]
[335810650,1724501447310,-500.0,0.00010999,2]
[335810651,1724501447320,-500.0,0.00010999,2]
[335810652,1724501447329,-500.0,0.00010999,2]
[335810653,1724501447339,-500.0,0.00010999,2]
[335810654,1724501447348,-500.0,0.00010999,2]
[335810655,1724501447358,-500.0,0.00010999,2]
[335810656,1724501447368,-500.0,0.00010999,2]
[335810657,1724501447378,-500.0,0.00010999,2]
[335810658,1724501447387,-500.0,0.00010999,2]
[335810659,1724501447397,-500.0,0.00010999,2]
[335810660,1724501447406,-500.0,0.00010999,2]
[335810661,1724501447416,-500.0,0.00010999,2]
[335810662,1724501447426,-500.0,0.00010999,2]
[335810663,1724501447436,-500.0,0.00010999,2]
[335810664,1724501447446,-500.0,0.00010999,2]
[335810665,1724501447455,-500.0,0.00010999,2]
[335810666,1724501447465,-500.0,0.00010999,2]
[335810667,1724501447584,-500.0,0.00010999,2]
[335810668,1724501447594,-500.0,0.00010999,2]
[335810669,1724501447603,-500.0,0.00010999,2]
[335810670,1724501447612,-500.0,0.00010999,2]
[335810671,1724501447621,-500.0,0.00010999,2]
[335810672,1724501447631,-500.0,0.00010999,2]
[335810673,1724501447640,-500.0,0.00010999,2]
[335810674,1724501447649,-500.0,0.00010999,2]
[335810675,1724501447659,-613.47,0.00010999,2]
[335810676,1724501447668,-363.90360199,0.00010999,2]
[335810677,1724501447815,-251.40639801,0.00010999,2]
[335810678,1724501447825,-500.0,0.00010999,2]
[335810679,1724501447835,-231.84316639,0.00010999,2]
[335810680,1724501447848,-268.15683361,0.00010999,2]
[335810681,1724501447858,-500.0,0.00010999,2]
[335810682,1724501447869,-500.0,0.00010999,2]
[335810683,1724501447879,-500.0,0.00010999,2]
[335810684,1724501447889,-500.0,0.00010999,2]
[335810685,1724501447899,-317.86466783,0.00010999,2]
[335810686,1724501447912,-182.13533217,0.00010999,2]
[335810687,1724501447921,-500.0,0.00010999,2]
[335810688,1724501447932,-366.44743083,0.00010999,2]
[335810689,1724501447944,-133.55256917,0.00010999,2]
[335810690,1724501447953,-500.0,0.00010999,2]
[335810691,1724501447963,-212.9695365,0.00010999,2]
[335810692,1724501447978,-287.0304635,0.00010999,2]
[335810693,1724501447987,-43.37065769,0.00010999,2]
[335810694,1724501447997,-456.62934231,0.00010999,2]
[335810695,1724501448007,-500.0,0.00010999,2]
[335810696,1724501448017,-500.0,0.00010999,2]
[335810697,1724501448026,-500.0,0.00010999,2]
[335810698,1724501448035,-413.25061816,0.00010999,2]
[335810699,1724501448046,-500.0,0.00010999,2]
[335810700,1724501448055,-500.0,0.00010999,2]
[335810701,1724501448064,-500.0,0.00010999,2]
[335810702,1724501448073,-500.0,0.00010999,2]
[335810703,1724501448083,-500.0,0.00010999,2]
[335810704,1724501448092,-500.0,0.00010999,2]
[335810705,1724501448101,-500.0,0.00010999,2]
[335810706,1724501448110,-500.0,0.00010999,2]
[335810707,1724501448119,-500.0,0.00010999,2]
[335810708,1724501448129,-500.0,0.00010999,2]
[335810709,1724501448139,-500.0,0.00010999,2]
[335810710,1724501448148,-500.0,0.00010999,2]
[335810711,1724501448157,-500.0,0.00010999,2]
[335810712,1724501448166,-500.0,0.00010999,2]
[335810713,1724501448175,-500.0,0.00010999,2]
[335810714,1724501448184,-157.62455295,0.00010999,2]
[335810715,1724501448196,-342.37544705,0.00010999,2]
[335810716,1724501448205,-500.0,0.00010999,2]
[335810717,1724501448214,-623.98,0.00010999,2]
[335810718,1724501448223,-500.0,0.00010999,2]
[335810719,1724501448233,-500.0,0.00010999,2]
[335810720,1724501448242,-500.0,0.00010999,2]
[335810721,1724501448252,-500.0,0.00010999,2]
[335810722,1724501448261,-500.0,0.00010999,2]
[335810723,1724501448270,-500.0,0.00010999,2]
[335810724,1724501448280,-500.0,0.00010999,2]
[335810725,1724501448289,-500.0,0.00010999,2]
[335810726,1724501448298,-500.0,0.00010999,2]
[335810727,1724501448307,-500.0,0.00010999,2]
[335810728,1724501448316,-500.0,0.00010999,2]
[335810729,1724501448325,-360.69601429,0.00010999,2]
[335810730,1724501448334,-500.0,0.00010999,2]
[335810731,1724501448343,-500.0,0.00010999,2]
[335810732,1724501448352,-500.0,0.00010999,2]
[335810733,1724501448362,-500.0,0.00010999,2]
[335810734,1724501448371,-500.0,0.00010999,2]
[335810735,1724501448381,-609.87461496,0.00010999,2]
[335810736,1724501448390,-500.0,0.00010999,2]
[335810737,1724501448399,-500.0,0.00010999,2]
[335810738,1724501448409,-500.0,0.00010999,2]
[335810739,1724501448418,-500.0,0.00010999,2]
[335810740,1724501448428,-500.0,0.00010999,2]
[335810741,1724501448437,-500.0,0.00010999,2]
[335810742,1724501448446,-500.0,0.00010999,2]
[335810743,1724501448455,-500.0,0.00010999,2]
[335810744,1724501448464,-500.0,0.00010999,2]
[335810745,1724501448473,-185.26358657,0.00010999,2]
[335810746,1724501448490,-314.73641343,0.00010999,2]
[335810747,1724501448499,-500.0,0.00010999,2]
[335810748,1724501448508,-175.55900126,0.00011,2]
[335810749,1724501448517,-2389.83969416,0.00011,2]
[335810750,1724501448529,-96257.63241954,0.00011,2]
[335810751,1724501448540,-1637.29710056,0.00011,2]
[335810752,1724501448551,-616.89321857,0.00011,2]
[335810753,1724501448562,-16277.64934177,0.00011,2]
[335810754,1724501448573,-8602.52214844,0.00011,2]
[335810755,1724501448584,-927.22751103,0.00011,2]
[335810756,1724501448595,-9894.76560632,0.00011,2]
[335810757,1724501448606,-306.3017982,0.00011,2]
[335810758,1724501448737,-206.06128228,0.00010949,2]
[335810759,1724501448747,-203.4,0.00010959,2]
[335810760,1724501448756,-728.42470563,0.00011,2]
[335810761,1724501448768,-1166.23520514,0.00011,2]
[335810762,1724501448779,-298.93134934,0.00011,2]
[335810763,1724501448789,-737.99988251,0.00011,2]
[335810764,1724501448801,-1719.99873845,0.00011,2]
[335810765,1724501448811,-2374.06999581,0.00011,2]
[335810766,1724501448822,-678.98375003,0.00011,2]
[335810767,1724501448839,-9291.90965979,0.00011,2]
[335810768,1724501448851,-1838.78,0.00011,2]
[335810769,1724501448862,-1598.31428799,0.00011,2]
[335810770,1724501448874,-735.896,0.00011,2]
[335810771,1724501448885,-1789.29207492,0.00011,2]
[335810772,1724501448895,-1113.8701207,0.00011,2]
[335810773,1724501448906,-1258.16789949,0.00011,2]
[335810774,1724501448976,-17189.36167256,0.00011,2]
[335810775,1724501448992,-297.41662691,0.00011,2]
[335810776,1724501449003,-5181.2232934,0.00011,2]
[335810777,1724501449015,-550.0,0.00011,2]
[335810778,1724501449026,-1401.42201098,0.00011,2]
[335810779,1724501449044,-913.91876055,0.00011,2]
[335810780,1724501449056,-2420.86061955,0.00011,2]
[335810781,1724501449066,-1239.88380057,0.00011,2]
[335810782,1724501449078,-4999.62043342,0.00011,2]
[335810783,1724501449089,-805.58226419,0.00011,2]
[335810784,1724501449100,-854.0,0.00011,2]
[335810785,1724501449111,-663.925,0.00011,2]
[335810786,1724501449122,-312.64,0.00011,2]
[335810787,1724501449135,-873.74712415,0.00011,2]
[335810788,1724501449146,-618.3903605,0.00011,2]
[335810789,1724501449157,-675.75650086,0.00011,2]
[335810790,1724501449168,-674.79429573,0.00011,2]
[335810791,1724501449179,-10164.3352765,0.00011,2]
[335810792,1724501449190,-2283.42218229,0.00011,2]
[335810793,1724501449203,-41637.97846636,0.00011,2]
[335810794,1724501449213,-400.0,0.00011,2]
[335810795,1724501449224,-10391.97917367,0.00011,2]
[335810796,1724501449236,-585.0271852,0.00011,2]
[335810797,1724501449247,-4045.52753629,0.00011,2]
[335810798,1724501449257,-835.91504645,0.00011,2]
[335810799,1724501449273,-3299.11777029,0.00011,2]
[335810800,1724501449284,-438.217861,0.00011,2]
[335810801,1724501468327,300.0,0.0001,3]
[335810805,1724501531906,1050.0,0.0001,2]
[335810814,1724501562053,181.99684236,0.0001,2]
[335810815,1724501562194,485.11777697,0.0001,2]
[335810816,1724501563075,170.6501045,0.0001,2]
[335810817,1724501573944,413.39640966,0.0001,2]
[335810819,1724501586420,339.69205388,0.0001,2]
[335810820,1724501590553,162.86951245,0.0001,2]
[335810821,1724501596252,286.67794406,0.0001,2]
[335810822,1724501598178,1000.0,0.00027,120]
[335810823,1724501602411,339.69205388,0.0001,2]
[335810824,1724501616064,203.10130847,0.00010009,2]
[335810825,1724501797292,200.0,9.972e-05,2]
[335810826,1724501804888,6112.8283,9.996e-05,2]
[335810827,1724501839620,292.0,9.978e-05,2]
[335810828,1724501941869,250.0,9.951e-05,2]
[335810829,1724501967338,486.57,8.219e-05,2]
[335810831,1724502043562,202.86503334,9.962e-05,2]
[335810832,1724502089933,200.0,9.913e-05,2]
[335810835,1724502315196,500.0,9.869e-05,2]
[335810838,1724502336558,461.79468298,9.5e-05,2]
[335810840,1724502387029,840.0,9.974e-05,2]
[335810841,1724502389723,166.4,9.974e-05,2]
[335810846,1724502451007,300.0,0.0001,3]
[335810848,1724502458832,492.27,8.219e-05,2]
[335810849,1724502478514,477.23607941,0.00010009,2]
[335810850,1724502487569,520.2885343,0.00010009,2]
[335810851,1724502508723,777.6120399,0.00010009,2]
[335810866,1724502568819,250.0,9.855e-05,2]
[335810872,1724502603959,168.14,9.844e-05,2]
[335810878,1724502631858,-205.37,0.00010019,2]
[335810880,1724502631869,-175.58,0.00010096,2]
[335810881,1724502631879,-437.0,0.00010096,2]
[335810882,1724502631888,-245.18158441,0.000101,2]
[335810883,1724502631898,-700.0,0.000101,3]
[335810884,1724502631907,-270.11929781,0.000102,3]
[335810885,1724502631919,-335.08950845,0.000102,3]
[335810886,1724502631930,-276.52,0.000102,3]
[335810887,1724502631950,-218.27119374,0.000102,3]
[335810888,1724502631959,-1500.0,0.000103,3]
[335810889,1724502631970,-1800.0,0.000104,3]
[335810890,1724502631980,-492.27,0.00010471,2]
[335810891,1724502631990,-300.0,0.000105,3]
[335810892,1724502632000,-1353.98,0.000105,2]
[335810893,1724502632009,-499.99,0.00010566,2]
[335810894,1724502632019,-300.0,0.000106,3]
[335810895,1724502632029,-211.32185808,0.00010699,2]
[335810896,1724502632045,-88.67814192,0.00010699,2]
[335810897,1724502632054,-1211.18,0.000107,2]
[335810898,1724502632064,-300.0,0.000107,3]
[335810899,1724502632074,-9259.1013215,0.00010713,2]
[335810900,1724502632083,-166.64047024,0.00010736,2]
[335810901,1724502632092,-150.0,0.00010756,2]
[335810902,1724502632102,-300.0,0.000108,3]
[335810903,1724502632112,-332.95579232,0.000108,2]
[335810904,1724502632121,-150.0,0.00010845,2]
[335810905,1724502632131,-152.63087406,0.0001085,2]
[335810906,1724502632141,-150.0,0.00010851,2]
[335810907,1724502632150,-5958.94890467,0.0001088,2]
[335810909,1724502632159,-150.0,0.0001088,2]
[335810911,1724502632168,-150.20882,0.00010889,2]
[335810913,1724502632178,-155.0,0.0001089,2]
[335810915,1724502632187,-155.0,0.0001089,2]
[335810917,1724502632196,-213.6062,0.00010899,2]
[335810919,1724502632206,-488.2987,0.00010899,2]
[335810921,1724502632215,-307.362,0.00010899,2]
[335810923,1724502632225,-387.0511,0.000109,2]
[335810925,1724502632234,-213.0746,0.000109,2]
[335810927,1724502632244,-319.04061562,0.000109,2]
[335810929,1724502632253,-134.78072704,0.000109,2]
[335810932,1724502632274,-2000.0,0.000109,2]
[335810934,1724502632285,-578.5596183,0.000109,2]
[335810937,1724502632298,-2174.47,0.000109,2]
[335810939,1724502632313,-471.49444149,0.000109,2]
[335810941,1724502632324,-1247.41495317,0.000109,2]
[335810943,1724502632333,-954.0,0.000109,3]
[335810945,1724502632343,-320.30056243,0.000109,2]
[335810947,1724502632353,-150.0,0.0001093,2]
[335810949,1724502632363,-500.0,0.0001094,2]
[335810951,1724502632372,-299.79290493,0.00010949,2]
[335810953,1724502632382,-150.0,0.00010956,2]
[335810955,1724502632392,-158.743353,0.00010958,2]
[335810957,1724502632402,-158.743345,0.00010958,2]
[335810959,1724502632411,-158.743345,0.00010958,2]
[335810961,1724502632420,-155.167469,0.00010958,2]
[335810963,1724502632429,-183.848821,0.00010958,2]
[335810965,1724502632439,-157.13,0.00010959,2]
[335810967,1724502632448,-171.48,0.00010959,2]
[335810969,1724502632458,-250.0,0.00010959,2]
[335810971,1724502632468,-169.5,0.00010959,2]
[335810973,1724502632478,-847.55,0.00010959,2]
[335810975,1724502632487,-150.0,0.00010969,2]
[335810977,1724502632496,-1500.0,0.0001098,2]
[335810979,1724502632506,-500.0,0.00010998,2]
[335810981,1724502632516,-500.0,0.00010998,2]
[335810982,1724502632526,-500.0,0.00010998,2]
[335810983,1724502632535,-500.0,0.00010998,2]
[335810984,1724502632544,-498.36006274,0.00010998,2]
[335810985,1724502632554,-261.06944241,0.00010998,2]
[335810986,1724502632565,-323.33590459,0.00010998,2]
[335810987,1724502632575,-395.89042489,0.00010998,2]
[335810995,1724502638044,-104.10957511,0.00010998,2]
[335810996,1724502638054,-319.63733268,0.00010998,2]
[335810997,1724502638065,-500.0,0.00010998,2]
[335810998,1724502638075,-417.2250125,0.00010998,2]
[335810999,1724502638101,-82.7749875,0.00010998,2]
[335811000,1724502638111,-500.0,0.00010998,2]
[335811001,1724502638120,-298.38828726,0.00010998,2]
[335811002,1724502638132,-201.61171274,0.00010998,2]
[335811003,1724502638142,-500.0,0.00010998,2]
[335811004,1724502638151,-500.0,0.00010998,2]
[335811005,1724502638161,-333.04169692,0.00010998,2]
[335811006,1724502638171,-500.0,0.00010998,2]
[335811007,1724502638181,-500.0,0.00010998,2]
[335811008,1724502638190,-500.0,0.00010998,2]
[335811009,1724502638201,-34.7632167,0.00010998,2]
[335811010,1724502638212,-276.91621574,0.00010998,2]
[335811117,1724502639936,-188.32056756,0.00010998,2]
[335811119,1724502639946,-500.0,0.00010998,2]
[335811121,1724502639955,-500.0,0.00010998,2]
[335811123,1724502639965,-500.0,0.00010998,2]
[335811125,1724502639974,-500.0,0.00010998,2]
[335811127,1724502639984,-436.3981565,0.00010998,2]
[335811129,1724502639995,-63.6018435,0.00010998,2]
[335811131,1724502640005,-500.0,0.00010998,2]
[335811133,1724502640014,-500.0,0.00010998,2]
[335811135,1724502640023,-500.0,0.00010998,2]
[335811137,1724502640033,-500.0,0.00010998,2]
[335811139,1724502640042,-185.0336535,0.00010998,2]
[335811141,1724502640054,-276.53,0.00010998,2]
[335811143,1724502640067,-38.4363465,0.00010998,2]
[335811145,1724502640076,-500.0,0.00010998,2]
[335811147,1724502640085,-500.0,0.00010998,2]
[335811149,1724502640094,-500.0,0.00010998,2]
[335811151,1724502640103,-633.92,0.00010998,2]
[335811153,1724502640112,-633.92,0.00010998,2]
[335811155,1724502640121,-915.88,0.00010998,2]
[335811157,1724502640130,-915.88,0.00010998,2]
[335811159,1724502640140,-561.86,0.00010998,2]
[335811161,1724502640150,-561.86,0.00010998,2]
[335811163,1724502640159,-500.0,0.00010998,2]
[335811165,1724502640169,-500.0,0.00010998,2]
[335811167,1724502640178,-500.0,0.00010998,2]
[335811169,1724502640187,-500.0,0.00010998,2]
[335811171,1724502640196,-500.0,0.00010998,2]
[335811173,1724502640206,-500.0,0.00010998,2]
[335811175,1724502640216,-500.0,0.00010998,2]
[335811177,1724502640226,-500.0,0.00010998,2]
[335811179,1724502640237,-500.0,0.00010998,2]
[335811181,1724502640246,-500.0,0.00010998,2]
[335811183,1724502640255,-500.0,0.00010998,2]
[335811185,1724502640264,-500.0,0.00010998,2]
[335811187,1724502640273,-500.0,0.00010998,2]
[335811189,1724502640282,-500.0,0.00010998,2]
[335811191,1724502640292,-500.0,0.00010998,2]
[335811193,1724502640301,-457.36597864,0.00010998,2]
[335811195,1724502640316,-500.0,0.00010998,2]
[335811197,1724502640326,-500.0,0.00010998,2]
[335811199,1724502640336,-500.0,0.00010998,2]
[335811201,1724502640347,-500.0,0.00010998,2]
[335811203,1724502640357,-500.0,0.00010998,2]
[335811205,1724502640367,-500.0,0.00010998,2]
[335811207,1724502640377,-175.32,0.00010998,2]
[335811209,1724502640388,-642.19658729,0.00010998,2]
[335811211,1724502640398,-500.0,0.00010998,2]
[335811213,1724502640407,-500.0,0.00010998,2]
[335811215,1724502640416,-500.0,0.00010998,2]
[335811217,1724502640427,-181.1126026,0.00010998,2]
[335811219,1724502640436,-500.0,0.00010998,2]
[335811221,1724502640446,-500.0,0.00010998,2]
[335811223,1724502640455,-500.0,0.00010998,2]
[335811226,1724502640465,-373.36494383,0.00010998,2]
[335811229,1724502640475,-500.0,0.00010998,2]
[335811232,1724502640484,-500.0,0.00010998,2]
[335811233,1724502640493,-500.0,0.00010998,2]
[335811235,1724502640503,-500.0,0.00010998,2]
[335811237,1724502640512,-500.0,0.00010998,2]
[335811239,1724502640521,-500.0,0.00010998,2]
[335811241,1724502640530,-500.0,0.00010998,2]
[335811243,1724502640540,-500.0,0.00010998,2]
[335811245,1724502640549,-500.0,0.00010998,2]
[335811247,1724502640558,-500.0,0.00010998,2]
[335811249,1724502640570,-500.0,0.00010998,2]
[335811251,1724502640579,-500.0,0.00010998,2]
[335811253,1724502640588,-500.0,0.00010998,2]
[335811255,1724502640597,-500.0,0.00010998,2]
[335811257,1724502640607,-500.0,0.00010998,2]
[335811259,1724502640616,-500.0,0.00010998,2]
[335811261,1724502640625,-500.0,0.00010998,2]
[335811262,1724502640634,-500.0,0.00010998,2]
[335811263,1724502640643,-500.0,0.00010998,2]
[335811264,1724502640653,-500.0,0.00010998,2]
[335811265,1724502640662,-500.0,0.00010998,2]
[335811266,1724502640671,-500.0,0.00010998,2]
[335811267,1724502640681,-500.0,0.00010998,2]
[335811268,1724502640690,-500.0,0.00010998,2]
[335811269,1724502640699,-185.04,0.00010998,2]
[335811270,1724502640709,-500.0,0.00010998,2]
[335811271,1724502640718,-500.0,0.00010998,2]
[335811272,1724502640727,-500.0,0.00010998,2]
[335811273,1724502640737,-500.0,0.00010998,2]
[335811274,1724502640746,-500.0,0.00010998,2]
[335811275,1724502640755,-500.0,0.00010998,2]
[335811276,1724502640765,-322.55253522,0.00010998,2]
[335811277,1724502640774,-500.0,0.00010998,2]
[335811278,1724502640784,-500.0,0.00010998,2]
[335811279,1724502640793,-500.0,0.00010998,2]
[335811280,1724502640801,-500.0,0.00010998,2]
[335811281,1724502640811,-572.35508158,0.00010998,2]
[335811282,1724502640822,-500.0,0.00010998,2]
[335811283,1724502640831,-500.0,0.00010999,2]
[335811284,1724502640841,-500.0,0.00010999,2]
[335811285,1724502640850,-226.55604541,0.00010999,2]
[335811286,1724502640860,-500.0,0.00010999,2]
[335811287,1724502640869,-506.79130337,0.00010999,2]
[335811288,1724502640880,-500.0,0.00010999,2]
[335811289,1724502640889,-500.0,0.00010999,2]
[335811290,1724502640899,-622.28923525,0.00010999,2]
[335811291,1724502640909,-500.0,0.00010999,2]
[335811292,1724502640918,-500.0,0.00010999,2]
[335811301,1724502640928,-500.0,0.00010999,2]
[335811303,1724502641070,-500.0,0.00010999,2]
[335811305,1724502641079,-500.0,0.00010999,2]
[335811307,1724502641089,-500.0,0.00010999,2]
[335811309,1724502641098,-500.0,0.00010999,2]
[335811311,1724502641107,-500.0,0.00010999,2]
[335811313,1724502641117,-500.0,0.00010999,2]
[335811315,1724502641126,-503.65901664,0.00010999,2]
[335811317,1724502641136,-500.0,0.00010999,2]
[335811319,1724502641146,-500.0,0.00010999,2]
[335811321,1724502641155,-500.0,0.00010999,2]
[335811323,1724502641165,-500.281465,0.00010999,2]
[335811325,1724502641174,-500.0,0.00010999,2]
[335811327,1724502641184,-500.0,0.00010999,2]
[335811329,1724502641194,-509.79408801,0.00010999,2]
[335811331,1724502641203,-607.3,0.00010999,2]
[335811332,1724502641213,-3067.07834159,0.00010999,2]
[335811334,1724502641222,-500.0,0.00010999,2]
[335811336,1724502641232,-562.89,0.00010999,2]
[335811338,1724502641242,-500.0,0.00010999,2]
[335811340,1724502641251,-500.0,0.00010999,2]
[335811342,1724502641261,-500.0,0.00010999,2]
[335811344,1724502641270,-500.0,0.00010999,2]
[335811346,1724502641280,-500.0,0.00010999,2]
[335811348,1724502641289,-500.0,0.00010999,2]
[335811350,1724502641298,-500.0,0.00010999,2]
[335811352,1724502641311,-500.0,0.00010999,2]
[335811354,1724502641320,-548.42,0.00010999,2]
[335811356,1724502641330,-414.82408258,0.00010999,2]
[335811358,1724502641339,-532.77,0.00010999,2]
[335811360,1724502641349,-500.0,0.00010999,2]
[335811362,1724502641358,-500.0,0.00010999,2]
[335811364,1724502641367,-500.0,0.00010999,2]
[335811365,1724502641376,-500.0,0.00010999,2]
[335811367,1724502641386,-500.0,0.00010999,2]
[335811369,1724502641395,-500.0,0.00010999,2]
[335811371,1724502641405,-510.16,0.00010999,2]
[335811373,1724502641414,-500.0,0.00010999,2]
[335811375,1724502641423,-256.2,0.00010999,2]
[335811377,1724502641432,-415.58,0.00010999,2]
[335811379,1724502641441,-577.44,0.00010999,2]
[335811381,1724502641451,-500.0,0.00010999,2]
[335811383,1724502641460,-500.0,0.00010999,2]
[335811385,1724502641469,-500.0,0.00010999,2]
[335811387,1724502641478,-500.0,0.00010999,2]
[335811389,1724502641487,-500.0,0.00010999,2]
[335811391,1724502641497,-500.0,0.00010999,2]
[335811393,1724502641506,-500.0,0.00010999,2]
[335811395,1724502641515,-500.0,0.00010999,2]
[335811397,1724502641525,-500.0,0.00010999,2]
[335811399,1724502641535,-566.4086231,0.00010999,2]
[335811401,1724502641544,-500.0,0.00010999,2]
[335811403,1724502641554,-500.0,0.00010999,2]
[335811405,1724502641563,-500.0,0.00010999,2]
[335811407,1724502641572,-285.00439114,0.00010999,2]
[335811409,1724502641581,-633.92,0.00010999,2]
[335811411,1724502641590,-633.92,0.00010999,2]
[335811413,1724502641599,-633.92,0.00010999,2]
[335811415,1724502641609,-633.92,0.00010999,2]
[335811417,1724502641618,-633.92,0.00010999,2]
[335811419,1724502641628,-633.92,0.00010999,2]
[335811421,1724502641637,-633.92,0.00010999,2]
[335811423,1724502641646,-633.92,0.00010999,2]
[335811425,1724502641656,-633.92,0.00010999,2]
[335811427,1724502641665,-633.92,0.00010999,2]
[335811429,1724502641674,-633.92,0.00010999,2]
[335811431,1724502641683,-633.92,0.00010999,2]
[335811433,1724502641692,-633.92,0.00010999,2]
[335811434,1724502641701,-633.92,0.00010999,2]
[335811436,1724502641710,-633.92,0.00010999,2]
[335811438,1724502641720,-633.92,0.00010999,2]
[335811440,1724502641729,-633.92,0.00010999,2]
[335811442,1724502641738,-633.92,0.00010999,2]
[335811444,1724502641747,-633.92,0.00010999,2]
[335811446,1724502641756,-633.92,0.00010999,2]
[335811448,1724502641766,-505.19655861,0.00010999,2]
[335811450,1724502641775,-633.92,0.00010999,2]
[335811452,1724502641785,-634.0121283,0.00010999,2]
[335811453,1724502641794,-500.0,0.00010999,2]
[335811456,1724502641804,-500.0,0.00010999,2]
[335811457,1724502641813,-500.0,0.00010999,2]
[335811459,1724502641822,-500.0,0.00010999,2]
[335811461,1724502641832,-500.0,0.00010999,2]
[335811463,1724502641840,-500.0,0.00010999,2]
[335811465,1724502641849,-500.0,0.00010999,2]
[335811467,1724502641858,-915.88,0.00010999,2]
[335811469,1724502641867,-915.88,0.00010999,2]
[335811471,1724502641877,-915.88,0.00010999,2]
[335811473,1724502641886,-915.88,0.00010999,2]
[335811475,1724502641896,-915.88,0.00010999,2]
[335811477,1724502641906,-915.88,0.00010999,2]
[335811479,1724502641915,-915.88,0.00010999,2]
[335811481,1724502641923,-915.88,0.00010999,2]
[335811483,1724502641933,-915.88,0.00010999,2]
[335811485,1724502641942,-915.88,0.00010999,2]
[335811487,1724502641951,-915.88,0.00010999,2]
[335811489,1724502641960,-915.88,0.00010999,2]
[335811491,1724502641970,-915.88,0.00010999,2]
[335811493,1724502641979,-915.88,0.00010999,2]
[335811495,1724502641987,-915.88,0.00010999,2]
[335811497,1724502641996,-915.88,0.00010999,2]
[335811499,1724502642006,-915.88,0.00010999,2]
[335811501,1724502642015,-915.88,0.00010999,2]
[335811503,1724502642024,-915.88,0.00010999,2]
[335811504,1724502642034,-915.88,0.00010999,2]
[335811507,1724502642044,-915.88,0.00010999,2]
[335811509,1724502642053,-915.88302093,0.00010999,2]
[335811511,1724502642062,-561.86,0.00010999,2]
[335811513,1724502642073,-500.0,0.00010999,2]
[335811514,1724502642082,-561.86,0.00010999,2]
[335811516,1724502642091,-500.0,0.00010999,2]
[335811518,1724502642100,-561.86,0.00010999,2]
[335811520,1724502642109,-500.0,0.00010999,2]
[335811522,1724502642118,-561.86,0.00010999,2]
[335811523,1724502642128,-500.0,0.00010999,2]
[335811524,1724502642137,-561.86,0.00010999,2]
[335811525,1724502642146,-561.86,0.00010999,2]
[335811526,1724502642156,-561.86,0.00010999,2]
[335811527,1724502642166,-561.86,0.00010999,2]
[335811528,1724502642176,-561.86,0.00010999,2]
[335811529,1724502642184,-561.86,0.00010999,2]
[335811530,1724502642194,-561.86,0.00010999,2]
[335811531,1724502642203,-561.86,0.00010999,2]
[335811532,1724502642212,-561.86,0.00010999,2]